[Event "LEM Sachsen-Anhalt Open 2024"]
[Site "Merseburg"]
[Date "2024.02.08"]
[Round "2.1"]
[White "Urban, Tom"]
[Black "Moser, Axel"]
[Result "1-0"]
[ECO "B13"]
[WhiteElo "1696"]
[BlackElo "2094"]
[Annotator "NA RC"]
[PlyCount "63"]
[EventDate "2024.02.01"]
[EventType "swiss"]
[EventCountry "GER"]
[SourceTitle "playchess.com"]
[Source "ChessBase"]
[SourceQuality "1"]
[TimeControl "40/5400+30:1800+30"]

1. e4 {[%emt 0:00:02]} c6 {[%emt 0:00:06]} 2. d4 {[%emt 0:00:04]} d5 {[%emt 0:00:06]} 3. exd5 {[%emt 0:00:09]} cxd5 {[%emt 0:00:06]} 4. Bd3 {[%emt 0:00:14]} Nc6 $11 {[%emt 0:00:05]} 5. c3 {[%emt 0:00:07]} Nf6 {[%emt 0:00:08]} 6. Nf3 {[%emt 0:00:12]} Bg4 {[%emt 0:00:34]} 7. Bf4 {[%emt 0:00:43]} e6 {[%emt 0:03:34]} 8. Nbd2 {[%emt 0:00:11]} Bd6 {[%emt 0:00:46]} 9. Bxd6 {[%emt 0:01:12]} Qxd6 {[%emt 0:00:06]} 10. O-O {[%emt 0:00:26]} O-O {[%emt 0:01:31]} 11. Qc2 {[%emt 0:02:57]} Rfc8 {[%emt 0:04:30]} 12. a3 {[%emt 0:00:22]} a6 {[%emt 0:03:14]} 13. Rae1 {[%emt 0:00:44]} Rab8 {[%emt 0:01:09]} 14. h3 {[%emt 0:02:13]} Bxf3 {[%emt 0:03:23]} 15. Nxf3 {[%emt 0:00:06]} Qc7 {[%emt 0:00:14]} 16. Re3 {[%emt 0:02:02]} b5 {[%emt 0:01:16]} 17. Qe2 {[%emt 0:02:04]} Na5 {[%emt 0:13:38]} 18. Ne5 {[%emt 0:02:01]} Nc4 {[%emt 0:00:23]} 19. Rg3 {[%emt 0:01:06]} a5 {[%emt 0:09:00]} 20. f4 {[%emt 0:05:02]} Rb6 {[%emt 0:04:11]} 21. f5 {[%emt 0:04:08]} Re8 {[%emt 0:04:06]} 22. Kh2 {[%emt 0:38:28]} exf5 {[%emt 0:04:06]} 23. Bxc4 {[%emt 0:05:10]} bxc4 {[%emt 0:08:31]} 24. Rxf5 {[%emt 0:04:07]} Ne4 {[%emt 0:08:58]} 25. Rxf7 {[%emt 0:11:51]} Nxg3 {[%emt 0:00:36]} 26. Qg4 {[%emt 0:01:51]} Rg6 {[%emt 0:00:24]} 27. Qxg6 {[%emt 0:00:38]} hxg6 {[%emt 0:05:32]} 28. Rxc7 {[%emt 0:00:45]} Nf1+ {[%emt 0:00:05]} 29. Kg1 {[%emt 0:00:45]} Ne3 {[%emt 0:00:07]} 30. Rb7 {[%emt 0:03:26]} Kh7 {[%emt 0:00:17]} 31. Kf2 {[%emt 0:01:17]} Nf5 {[%emt 0:01:13]} 32. a4 {[%emt 0:01:11]} 1-0

[Event "LEM Sachsen-Anhalt Open 2024"]
[Site "Merseburg"]
[Date "2024.02.08"]
[Round "2.2"]
[White "Carnot, Luca"]
[Black "Haensel, Mathias"]
[Result "1-0"]
[ECO "E90"]
[WhiteElo "2063"]
[BlackElo "1689"]
[Annotator "NA RC"]
[PlyCount "95"]
[EventDate "2024.02.01"]
[EventType "swiss"]
[EventCountry "GER"]
[SourceTitle "playchess.com"]
[Source "ChessBase"]
[SourceQuality "1"]
[TimeControl "40/5400+30:1800+30"]

1. d4 {[%emt 0:00:30]} Nf6 {[%emt 0:00:10]} 2. Nf3 {[%emt 0:00:05]} g6 {[%emt 0:00:08]} 3. c4 {[%emt 0:00:05]} d6 {[%emt 0:00:13]} 4. Nc3 {[%emt 0:00:06]} Bg7 $14 {[%emt 0:00:10]} 5. e4 {[%emt 0:00:05]} O-O {[%emt 0:00:39]} 6. h3 {[%emt 0:00:18]} Nc6 {[%emt 0:03:49]} 7. Be3 {[%emt 0:04:02]} e5 {[%emt 0:02:16]} 8. d5 {[%emt 0:01:20]} Ne7 {[%emt 0:00:15]} 9. g4 {[%emt 0:02:03]} a6 {[%emt 0:03:31]} 10. Be2 {[%emt 0:00:23]} c6 {[%emt 0:00:45]} 11. a4 {[%emt 0:03:59]} Qa5 {[%emt 0:05:51]} 12. Nd2 {[%emt 0:02:10]} Nd7 {[%emt 0:04:23]} 13. Rg1 {[%emt 0:02:57]} h6 {[%emt 0:08:40]} 14. Nb3 {[%emt 0:02:41]} Qc7 {[%emt 0:01:08]} 15. a5 {[%emt 0:01:18]} b6 {[%emt 0:08:40]} 16. axb6 {[%emt 0:01:18]} Nxb6 {[%emt 0:05:46]} 17. c5 {[%emt 0:00:28]} Nd7 {[%emt 0:00:20]} 18. dxc6 {[%emt 0:00:13]} Nxc6 {[%emt 0:00:31]} 19. cxd6 {[%emt 0:01:30]} Qb8 {[%emt 0:02:03]} 20. Ra3 {[%emt 0:09:41]} Rd8 {[%emt 0:01:36]} 21. Qd2 {[%emt 0:05:00]} Kh7 {[%emt 0:02:42]} 22. Bc4 {[%emt 0:01:07]} f6 {[%emt 0:01:56]} 23. Bd5 {[%emt 0:14:45]} Bb7 {[%emt 0:07:03]} 24. Bxc6 {[%emt 0:05:26]} Bxc6 {[%emt 0:00:19]} 25. Na5 {[%emt 0:03:40]} Bb5 {[%emt 0:00:43]} 26. Nd5 {[%emt 0:15:28]} Nf8 {[%emt 0:17:51]} 27. Nc7 {[%emt 0:02:46]} Ne6 {[%emt 0:01:51]} 28. Nxa8 {[%emt 0:07:25]} Rxd6 {[%emt 0:00:29]} 29. Qc2 {[%emt 0:07:01]} Qxa8 {[%emt 0:01:20]} 30. f3 {[%emt 0:00:39]} Nd4 {[%emt 0:01:25]} 31. Bxd4 {[%emt 0:01:08]} Rxd4 {[%emt 0:00:31]} 32. Rc3 {[%emt 0:01:06]} Qf8 {[%emt 0:04:26]} 33. Nb3 {[%emt 0:00:56]} Qb4 {[%emt 0:01:40]} 34. Kf2 {[%emt 0:03:18]} Ba4 {[%emt 0:06:09]} 35. Rd1 {[%emt 0:01:06]} Qb6 {[%emt 0:00:52]} 36. Kg2 {[%emt 0:00:17]} Rb4 {[%emt 0:00:19]} 37. Rdd3 {[%emt 0:00:08]} Bb5 {[%emt 0:01:57]} 38. Re3 {[%emt 0:01:10]} Ba4 {[%emt 0:00:35]} 39. Red3 {[%emt 0:00:05]} Bb5 {[%emt 0:00:16]} 40. Re3 {[%emt 0:02:06]} Ba4 {[%emt 0:00:10]} 41. Qd1 {[%emt 0:03:45]} h5 {[%emt 0:02:48]} 42. gxh5 {[%emt 0:02:51]} gxh5 {[%emt 0:00:34]} 43. f4 {[%emt 0:00:37]} Bh6 {[%emt 0:00:59]} 44. Qxh5 {[%emt 0:01:18]} exf4 {[%emt 0:01:22]} 45. Rg3 {[%emt 0:00:23]} fxg3 {[%emt 0:01:26]} 46. Rxg3 {[%emt 0:00:02]} Be8 {[%emt 0:04:03]} 47. Qxe8 {[%emt 0:00:26]} Qb8 {[%emt 0:00:09]} 48. Qg6+ {[%emt 0:00:15]} 1-0

[Event "LEM Sachsen-Anhalt Open 2024"]
[Site "Merseburg"]
[Date "2024.02.08"]
[Round "2.4"]
[White "Hentzgen, Thomas"]
[Black "Patzschke, Carlo"]
[Result "1/2-1/2"]
[ECO "A36"]
[WhiteElo "1939"]
[BlackElo "1636"]
[Annotator "NA RC"]
[PlyCount "40"]
[EventDate "2024.02.01"]
[EventType "swiss"]
[EventCountry "GER"]
[SourceTitle "playchess.com"]
[Source "ChessBase"]
[SourceQuality "1"]
[TimeControl "40/5400+30:1800+30"]

1. c4 {[%emt 0:00:03]} Nf6 {[%emt 0:00:07]} 2. Nc3 {[%emt 0:00:05]} g6 {[%emt 0:00:22]} 3. e4 {[%emt 0:00:18]} d6 {[%emt 0:00:18]} 4. Nge2 {[%emt 0:00:37]} Bg7 {[%emt 0:00:26]} 5. g3 {[%emt 0:00:35]} O-O {[%emt 0:00:09]} 6. Bg2 {[%emt 0:00:05]} c5 {[%emt 0:00:17]} 7. O-O {[%emt 0:01:29]} Nc6 {[%emt 0:00:24]} 8. d3 {[%emt 0:00:40]} Rb8 {[%emt 0:01:53]} 9. Rb1 {[%emt 0:03:09]} a6 {[%emt 0:01:02]} 10. a3 {[%emt 0:03:05]} b5 {[%emt 0:11:09]} 11. cxb5 {[%emt 0:00:28]} axb5 {[%emt 0:00:08]} 12. b4 {[%emt 0:00:12]} cxb4 {[%emt 0:01:34]} 13. axb4 {[%emt 0:00:03]} Ne8 {[%emt 0:06:34] A36: Symmetrical English vs ...g6: 4 Bg2 Bg7.} 14. Be3 {[%emt 0:03:26]} Nc7 {[%emt 0:02:00]} 15. Qd2 {[%emt 0:04:59]} Bd7 {[%emt 0:03:27]} 16. Bh6 {[%emt 0:08:48]} Bxh6 {[%emt 0:11:00]} 17. Qxh6 {[%emt 0:00:07]} Ne6 {[%emt 0:00:45]} 18. Nd5 {[%emt 0:03:21]} Ned4 {[%emt 0:01:32]} 19. Nxd4 $11 {[%emt 0:11:14]} Nxd4 {[%emt 0:00:08]} 20. Qe3 {[%emt 0:00:36]} Nc6 {[%emt 0:05:54]} 1/2-1/2

[Event "LEM Sachsen-Anhalt Open 2024"]
[Site "Merseburg"]
[Date "2024.02.08"]
[Round "2.5"]
[White "Dobierzin, Olaf"]
[Black "Sikorra, Philipp"]
[Result "1-0"]
[ECO "B00"]
[WhiteElo "1927"]
[BlackElo "1667"]
[Annotator "NA RC"]
[PlyCount "71"]
[EventDate "2024.02.01"]
[EventType "swiss"]
[EventCountry "GER"]
[SourceTitle "playchess.com"]
[Source "ChessBase"]
[SourceQuality "1"]
[TimeControl "40/5400+30:1800+30"]

1. e4 {[%emt 0:00:04]} Nc6 {[%emt 0:00:51]} 2. Nf3 {[%emt 0:00:18]} f5 {[%emt 0:01:57]} 3. exf5 {[%emt 0:02:09]} d5 {[%emt 0:01:18]} 4. d4 {[%emt 0:00:36]} Bxf5 {[%emt 0:00:40]} 5. Bb5 {[%emt 0:03:57]} Qd6 {[%emt 0:02:56]} 6. O-O {[%emt 0:01:51] B00: Queen's Fianchetto Defence, Nimzowitsch Defence.} h6 {[%emt 0:01:38]} 7. Ne5 {[%emt 0:04:45]} g6 {[%emt 0:03:22]} 8. c3 {[%emt 0:05:11]} Bg7 {[%emt 0:01:19]} 9. Bf4 {[%emt 0:02:10]} Qf6 {[%emt 0:00:56]} 10. Bg3 {[%emt 0:02:04]} h5 {[%emt 0:02:06]} 11. Nxc6 {[%emt 0:03:35]} bxc6 {[%emt 0:04:40]} 12. Be5 {[%emt 0:01:36]} Qe6 {[%emt 0:00:16]} 13. Bxg7 {[%emt 0:05:59]} Rh7 {[%emt 0:01:26]} 14. Be5 {[%emt 0:05:04]} cxb5 {[%emt 0:00:24]} 15. Bxc7 {[%emt 0:01:11]} Nf6 {[%emt 0:02:09]} 16. Re1 {[%emt 0:00:53]} Qd7 {[%emt 0:01:42]} 17. Be5 {[%emt 0:00:27]} Rf7 {[%emt 0:01:31]} 18. Nd2 {[%emt 0:04:42]} Kf8 {[%emt 0:02:44]} 19. Bg3 {[%emt 0:10:18]} Kg8 {[%emt 0:00:33]} 20. Nf3 {[%emt 0:02:10]} Bg4 {[%emt 0:04:44]} 21. Ne5 {[%emt 0:01:14]} Bxd1 {[%emt 0:01:52]} 22. Nxd7 {[%emt 0:00:02]} Nxd7 {[%emt 0:00:33]} 23. Raxd1 {[%emt 0:00:18]} g5 {[%emt 0:01:37]} 24. f3 $18 {[%emt 0:08:39]} Raf8 {[%emt 0:03:11]} 25. Re6 {[%emt 0:02:35]} g4 {[%emt 0:04:07]} 26. fxg4 {[%emt 0:00:38]} Nf6 {[%emt 0:00:40]} 27. gxh5 {[%emt 0:04:01]} Nxh5 {[%emt 0:00:39]} 28. Be5 {[%emt 0:05:51]} Nf4 {[%emt 0:03:12]} 29. Bxf4 {[%emt 0:00:24]} Rxf4 {[%emt 0:00:06]} 30. Re2 {[%emt 0:01:44]} R8f7 {[%emt 0:00:46]} 31. g3 {[%emt 0:00:29]} R4f6 {[%emt 0:00:30]} 32. Rde1 {[%emt 0:02:22]} Kf8 {[%emt 0:00:10]} 33. Re5 {[%emt 0:00:35]} Rf2 {[%emt 0:00:12]} 34. R1e2 {[%emt 0:00:18]} Rf1+ {[%emt 0:00:45]} 35. Kg2 {[%emt 0:00:04]} Ra1 {[%emt 0:00:12]} 36. a3 {[%emt 0:00:44]} 1-0

[Event "LEM Sachsen-Anhalt Open 2024"]
[Site "Merseburg"]
[Date "2024.02.08"]
[Round "2.6"]
[White "Geldner, Gerrit"]
[Black "Shevchenko, Igor"]
[Result "1-0"]
[ECO "A24"]
[WhiteElo "1889"]
[BlackElo "2105"]
[Annotator "TA"]
[PlyCount "75"]
[EventDate "2024.02.01"]
[EventType "swiss"]
[EventCountry "GER"]
[SourceTitle "playchess.com"]
[Source "ChessBase"]
[SourceQuality "1"]
[TimeControl "40/5400+30:1800+30"]

{[%evp 14,75,37,37,47,40,67,60,60,54,43,38,116,114,122,124,123,117,182,166,164,172,210,216,193,32,35,46,43,45,136,147,133,148,131,90,90,94,232,235,187,197,216,197,248,251,300,311,433,439,419,417,461,444,458,493,425,476,670,537,1214,1194,1017,550]} 1. c4 {[%emt 0:00:05]} Nf6 {[%emt 0:00:09]} 2. Nc3 {[%emt 0:00:26]} g6 {[%emt 0:00:18]} 3. g3 {[%emt 0:00:25]} Bg7 {[%emt 0:00:15]} 4. Bg2 {[%emt 0:00:13]} O-O {[%emt 0:00:12]} 5. e4 {[%emt 0:00:55]} d6 {[%emt 0:00:15]} 6. Nge2 {[%emt 0:00:33]} e5 {[%emt 0:00:36]} 7. d3 {[%emt 0:00:28]} Nbd7 {[%emt 0:01:36]} 8. O-O {[%emt 0:00:49]} Nc5 {[%emt 0:01:21]} 9. h3 {[%emt 0:01:37]} a5 {[%emt 0:01:13]} 10. Be3 {[%emt 0:01:44]} Ne6 {[%emt 0:05:38] White is slightly better.} 11. f4 {[%emt 0:06:29]} exf4 {[%emt 0:01:10]} 12. gxf4 {[%emt 0:00:49][%cal Bg3f4,Bf4f5][%mdl 32]} Nh5 {[%emt 0:06:04]} (12... Bh6 $14) 13. f5 $16 {[%emt 0:04:24]} Nc5 {[%emt 0:04:05]} 14. Qd2 {[%emt 0:03:00]} Nd7 {[%emt 1:14:38]} 15. d4 {[%emt 1:16:03]} c5 {[%emt 0:00:00]} (15... Nb6 $16 {might work better.}) 16. dxc5 $1 $18 {[%emt 0:00:00]} dxc5 {[%emt 0:00:00]} 17. Rad1 {[%emt 0:00:00]} Qe7 {[%emt 0:00:00]} 18. b3 {[%emt 0:00:00]} Qe5 {[%emt 0:00:00]} 19. Qd6 $2 {[%emt 0:00:00]} (19. Nd5 $18) 19... Qxd6 $14 {[%emt 0:00:00]} 20. Rxd6 {[%emt 0:00:00] Strongly threatening Nd5.} Be5 {[%emt 0:00:00]} 21. Rd3 {[%emt 0:00:00]} Ra6 {[%emt 0:00:00] [#]} (21... b6 $14) 22. Rfd1 $1 $36 {[%emt 0:00:00][%mdl 2048] White is really pushing.} Nhf6 {[%emt 0:00:00] [#]} 23. Nd5 $1 {[%emt 0:00:00]} Re8 {[%emt 0:00:00]} 24. fxg6 {[%emt 0:00:00] White is more active.} hxg6 {[%emt 0:00:00]} 25. Nxf6+ {[%emt 0:00:00]} Rxf6 {[%emt 0:00:00] This move loses the game for Black.} (25... Nxf6 $16 26. Bxc5 a4) 26. Rxd7 $18 {[%emt 0:00:00]} Bxd7 {[%emt 0:00:00]} 27. Rxd7 {[%emt 0:00:00]} b6 {[%emt 0:00:00]} 28. Bg5 {[%emt 0:00:00]} Rc6 {[%emt 0:00:00]} (28... Rd6 {is a better defense.} 29. Rxd6 Bxd6) 29. Nf4 {[%emt 0:00:00]} Bd4+ {[%emt 0:00:00]} 30. Kf1 {[%emt 0:00:00]} Re5 {[%emt 0:00:00] [#]} 31. Nd5 $1 {[%emt 0:00:00]} Kg7 {[%emt 0:00:00]} 32. h4 {[%emt 0:00:00]} Ree6 {[%emt 0:09:00]} 33. a4 {[%emt 0:00:00] White is clearly winning.} Rcd6 {[%emt 0:00:00]} 34. Rb7 {[%emt 0:00:00]} Bb2 {[%emt 0:00:00]} 35. Ke2 {[%emt 0:00:00]} Ba3 {[%emt 0:00:00]} (35... Ba1 $142 36. Bf3 Kg8 37. Rb8+ Kh7) 36. Kd3 {[%emt 0:00:00]} Bb4 {[%emt 0:00:00]} 37. Bh3 {[%emt 0:00:00]} Re8 {[%emt 0:00:00]} 38. Be7 {[%emt 0:00:00] Weighted Error Value: White=0.18 (very precise) /Black=0.39.  Missed win:     	White=1     	---        Mistake:       	---       	Black=6      Inaccurate:     	White=1     	Black=3      OK:         	White=12    	Black=6      Best:        	White=3     	Black=1      Strong:       	White=1     	---} 1-0

[Event "LEM Sachsen-Anhalt Open 2024"]
[Site "Merseburg"]
[Date "2024.02.08"]
[Round "2.7"]
[White "Brueckner, Julian"]
[Black "Winnig, Bernd"]
[Result "0-1"]
[ECO "C10"]
[WhiteElo "1592"]
[BlackElo "1883"]
[Annotator "NA RC"]
[PlyCount "72"]
[EventDate "2024.02.01"]
[EventType "swiss"]
[EventCountry "GER"]
[SourceTitle "playchess.com"]
[Source "ChessBase"]
[SourceQuality "1"]
[TimeControl "40/5400+30:1800+30"]

1. e4 {[%emt 0:00:03]} e6 {[%emt 0:00:06]} 2. d4 {[%emt 0:00:10]} d5 {[%emt 0:00:05]} 3. Nd2 {[%emt 0:00:13]} dxe4 {[%emt 0:01:00]} 4. Nxe4 {[%emt 0:00:14]} Nd7 {[%emt 0:00:17]} 5. Nf3 {[%emt 0:00:52]} Ngf6 {[%emt 0:00:55]} 6. Bd3 {[%emt 0:01:17]} Be7 {[%emt 0:01:19]} 7. O-O {[%emt 0:01:49]} Nxe4 {[%emt 0:01:37]} 8. Bxe4 {[%emt 0:00:49]} Nf6 {[%emt 0:00:20]} 9. Bd3 {[%emt 0:00:29]} O-O {[%emt 0:00:36]} 10. c3 {[%emt 0:01:08]} c5 {[%emt 0:07:06]} 11. Be3 {[%emt 0:02:13]} Nd5 {[%emt 0:00:30]} 12. Qe2 {[%emt 0:01:30]} Nxe3 {[%emt 0:04:59]} 13. fxe3 {[%emt 0:00:47]} h6 {[%emt 0:09:53]} 14. Rad1 {[%emt 0:01:14]} Qc7 {[%emt 0:02:07]} 15. Bb1 {[%emt 0:06:25]} Bd7 {[%emt 0:08:28]} 16. Qd3 {[%emt 0:01:10]} f5 {[%emt 0:00:17]} 17. dxc5 {[%emt 0:00:29]} Rad8 {[%emt 0:01:41]} 18. Qe2 {[%emt 0:05:26]} Qxc5 {[%emt 0:05:50]} 19. Nd4 {[%emt 0:01:13]} Bf6 {[%emt 0:05:09]} 20. e4 {[%emt 0:03:02]} e5 {[%emt 0:03:46]} 21. b4 {[%emt 0:02:41]} Qb6 {[%emt 0:00:11]} 22. Qc4+ {[%emt 0:00:33]} Kh8 {[%emt 0:02:55]} 23. Qd3 {[%emt 0:00:56]} exd4 {[%emt 0:00:32]} 24. cxd4 {[%emt 0:00:18]} Bb5 {[%emt 0:00:53]} 25. Qh3 {[%emt 0:01:35]} Bxf1 {[%emt 0:01:06]} 26. Rxf1 {[%emt 0:00:11]} Rxd4 {[%emt 0:01:26]} 27. Kh1 {[%emt 0:00:37]} fxe4 {[%emt 0:00:55]} 28. Qf5 {[%emt 0:01:01]} Qxb4 {[%emt 0:01:54]} 29. Rg1 {[%emt 0:03:16]} Bg5 {[%emt 0:01:58]} 30. Qh3 {[%emt 0:00:32]} Qd2 {[%emt 0:02:49]} 31. Qa3 {[%emt 0:00:51]} Rfd8 {[%emt 0:06:40]} 32. Rf1 {[%emt 0:03:07]} Qc1 {[%emt 0:02:46]} 33. Qxc1 {[%emt 0:01:01]} Bxc1 {[%emt 0:00:02]} 34. Bc2 {[%emt 0:00:18]} Ba3 {[%emt 0:00:30]} 35. Re1 {[%emt 0:01:03]} Rd2 {[%emt 0:01:48]} 36. Bb3 {[%emt 0:01:01]} e3 {[%emt 0:01:11]} 0-1

[Event "LEM Sachsen-Anhalt Open 2024"]
[Site "Merseburg"]
[Date "2024.02.08"]
[Round "2.8"]
[White "Korte, Markus"]
[Black "Donath, Simon"]
[Result "1-0"]
[ECO "B14"]
[WhiteElo "1879"]
[BlackElo "1589"]
[Annotator "NA"]
[PlyCount "205"]
[EventDate "2024.02.01"]
[EventType "swiss"]
[EventCountry "GER"]
[SourceTitle "playchess.com"]
[Source "ChessBase"]
[SourceQuality "1"]
[TimeControl "40/5400+30:1800+30"]

1. e4 {[%emt 0:00:04]} c6 {[%emt 0:00:06]} 2. d4 {[%emt 0:01:04]} d5 {[%emt 0:00:07]} 3. exd5 {[%emt 0:00:43]} cxd5 {[%emt 0:00:08]} 4. c4 {[%emt 0:00:08]} Nf6 {[%emt 0:00:08]} 5. Nc3 {[%emt 0:00:06]} e6 {[%emt 0:01:58]} 6. Nf3 {[%emt 0:00:30]} Nc6 {[%emt 0:01:15]} 7. Bg5 {[%emt 0:03:37]} Be7 {[%emt 0:03:19]} 8. c5 {[%emt 0:06:02]} Ne4 {[%emt 0:05:34]} 9. Bxe7 {[%emt 0:09:58]} Qxe7 {[%emt 0:02:25]} 10. Bb5 {[%emt 0:10:03] B14: Caro-Kann: Panov-Botvinnik Attack with 5...e6 and 5...g6.} Bd7 {[%emt 0:03:12]} 11. O-O {[%emt 0:05:03]} O-O {[%emt 0:01:38]} 12. Re1 {[%emt 0:06:18]} Nxc3 {[%emt 0:06:12]} 13. bxc3 {[%emt 0:00:12]} b6 {[%emt 0:00:23]} 14. cxb6 {[%emt 0:15:11]} axb6 {[%emt 0:00:09]} 15. Qe2 {[%emt 0:04:19]} Ra5 {[%emt 0:04:02]} 16. Reb1 {[%emt 0:04:20]} Rc8 {[%emt 0:01:58]} 17. Rb3 {[%emt 0:07:38]} Na7 {[%emt 0:05:20]} 18. Bd3 {[%emt 0:01:02]} Ba4 {[%emt 0:02:57]} 19. Rxb6 {[%emt 0:01:41]} Qc7 {[%emt 0:00:47]} 20. Rab1 {[%emt 0:07:55]} Qxc3 {[%emt 0:01:42]} 21. h3 {[%emt 0:00:51]} Nc6 {[%emt 0:01:51] [#]} 22. Qe3 $2 {[%emt 0:06:07]} (22. Ng5 $1 $18 Nd8 (22... Nxd4 $2 {loses.} 23. Bxh7+ Kf8 24. Qe5 $18) 23. Bxh7+ Kf8 24. Rxe6) 22... Ne7 {[%emt 0:04:45]} 23. Rb8 {[%emt 0:04:34]} g6 $2 {[%emt 0:03:10]} (23... h6) 24. Rc1 {[%emt 0:01:04]} Qxc1+ {[%emt 0:00:46]} 25. Qxc1 {[%emt 0:00:02]} Rxb8 {[%emt 0:00:25]} 26. Qc7 {[%emt 0:00:17]} Nc6 {[%emt 0:00:23]} 27. Ne5 {[%emt 0:00:13]} Ra7 {[%emt 0:00:35]} 28. Qd6 {[%emt 0:01:19]} Rc8 {[%emt 0:04:09]} 29. Nf3 {[%emt 0:01:47]} Bd1 {[%emt 0:04:41]} 30. Ng5 {[%emt 0:01:29]} Nxd4 {[%emt 0:05:49]} 31. Qb6 {[%emt 0:00:35]} Ra4 {[%emt 0:01:53]} 32. Nxf7 {[%emt 0:01:13]} Rca8 {[%emt 0:04:55]} 33. Ng5 {[%emt 0:00:48]} R8a7 {[%emt 0:04:22]} 34. Nxe6 {[%emt 0:00:36]} Nxe6 {[%emt 0:01:05]} 35. Qxe6+ {[%emt 0:00:02]} Kg7 {[%emt 0:01:23]} 36. Qe5+ {[%emt 0:00:06]} Kh6 {[%emt 0:01:30]} 37. Qxd5 {[%emt 0:00:55]} R7a5 {[%emt 0:02:40]} 38. Bb5 {[%emt 0:01:38]} Rxa2 {[%emt 0:00:23]} 39. Qd3 {[%emt 0:00:00]} R2a3 {[%emt 0:02:14]} 40. Qd2+ {[%emt 0:00:10]} Kg7 {[%emt 0:00:46]} 41. Kh2 {[%emt 0:01:07]} Bb3 {[%emt 0:01:15]} 42. Qd6 {[%emt 0:01:31]} Ra7 {[%emt 0:01:02]} 43. Bd7 {[%emt 0:02:00]} Bf7 {[%emt 0:01:03]} 44. Bg4 {[%emt 0:01:58]} R7a6 {[%emt 0:01:28]} 45. Qd4+ {[%emt 0:00:49]} Rf6 {[%emt 0:01:14]} 46. Bf3 {[%emt 0:03:35]} Raa6 {[%emt 0:02:03]} 47. Be4 {[%emt 0:04:30]} Ra2 {[%emt 0:02:21]} 48. f3 {[%emt 0:00:34]} Raa6 {[%emt 0:00:10]} 49. g4 {[%emt 0:02:00]} Rad6 {[%emt 0:00:46]} 50. Qc3 {[%emt 0:00:25]} g5 {[%emt 0:01:37]} 51. h4 {[%emt 0:04:09]} h6 {[%emt 0:01:01]} 52. f4 {[%emt 0:01:59]} Kg8 {[%emt 0:01:24]} 53. fxg5 {[%emt 0:03:03]} hxg5 {[%emt 0:00:37]} 54. hxg5 {[%emt 0:00:25]} Rfe6 {[%emt 0:01:11]} 55. Qc8+ {[%emt 0:01:24]} Re8 {[%emt 0:00:14]} 56. Qc2 {[%emt 0:03:29]} Rde6 {[%emt 0:00:44]} 57. Bh7+ {[%emt 0:00:23]} Kg7 {[%emt 0:01:11]} 58. Bd3 {[%emt 0:01:02]} R8e7 {[%emt 0:01:45]} 59. Qc3+ {[%emt 0:00:31]} Kg8 {[%emt 0:00:33]} 60. g6 {[%emt 0:00:27]} Rxg6 {[%emt 0:01:37]} 61. Bxg6 {[%emt 0:00:25]} Bxg6 {[%emt 0:01:10]} 62. Kg3 {[%emt 0:00:46]} Kh7 {[%emt 0:00:47]} 63. Kh4 {[%emt 0:01:13]} Rg7 {[%emt 0:00:41]} 64. Kg5 {[%emt 0:01:49]} Rd7 $2 {[%emt 0:02:10]} (64... Be8+ $18 65. Kf4 Rf7+ 66. Kg3 Rg7) 65. Qh3+ {[%emt 0:00:31]} Kg7 {[%emt 0:00:25]} 66. Qh6+ {[%emt 0:00:04]} Kg8 {[%emt 0:01:10]} 67. Kf6 $2 {[%emt 0:02:48]} (67. Qxg6+ {mates} Kf8 68. Qf5+ Ke8 69. Qxd7+ Kxd7 70. Kf6 Kd8 71. Kf7 Kc7 72. g5) 67... Bh7 $2 {[%emt 0:02:37]} (67... Be8 $18) 68. Qg5+ {[%emt 0:00:27]} Kh8 {[%emt 0:00:42]} 69. Ke6 {[%emt 0:00:54]} Rg7 {[%emt 0:00:26]} 70. Qf6 {[%emt 0:00:27]} Bg8+ {[%emt 0:00:26]} 71. Ke5 {[%emt 0:00:31]} Bf7 {[%emt 0:02:31]} 72. g5 {[%emt 0:00:16]} Kg8 {[%emt 0:01:08]} 73. Qd8+ {[%emt 0:00:11]} Kh7 {[%emt 0:00:14]} 74. Kf6 {[%emt 0:00:36]} Bh5 {[%emt 0:02:34]} 75. Qd2 $2 {[%emt 0:00:34]} (75. Qd5 {mates} Kh8 76. Qh1 Rf7+ 77. Ke5 (77. Ke6 Rh7 $18) 77... Re7+ 78. Kd4 Rd7+ 79. Kc3 Rc7+ 80. Kb4) 75... Rf7+ {[%emt 0:00:55]} 76. Ke6 $14 {[%emt 0:00:45]} Kg6 $1 {[%emt 0:01:13]} 77. Qe3 {[%emt 0:00:46]} Bg4+ {[%emt 0:00:25]} 78. Kd6 {[%emt 0:00:27]} Bf5 {[%emt 0:00:21] [#]} 79. Qg3 {[%emt 0:00:36]} (79. Qe8 $1 $16 {[%cal Re8g8]}) 79... Rd7+ {[%emt 0:00:26]} 80. Kc6 {[%emt 0:00:40]} Re7 {[%emt 0:00:24]} 81. Kc5 {[%emt 0:00:39]} Re6 {[%emt 0:00:23] [#]} (81... Re4 $14) 82. Qh4 $1 {[%emt 0:00:16]} Kg7 {[%emt 0:00:20]} 83. Kd5 {[%emt 0:00:12]} Rg6 {[%emt 0:01:57]} (83... Kf7 $16 {might work better.} 84. Qh8 Kg6) 84. Ke5 {[%emt 0:00:23]} Bd7 {[%emt 0:00:35]} 85. Qf4 {[%emt 0:00:29]} Be8 {[%emt 0:00:31]} 86. Qh4 {[%emt 0:00:20]} Bf7 {[%emt 0:00:09]} 87. Kf4 {[%emt 0:00:05]} Rc6 {[%emt 0:00:18]} 88. Qg3 {[%emt 0:00:31]} Rc4+ {[%emt 0:00:40]} 89. Ke5 {[%emt 0:00:15]} Rc5+ {[%emt 0:00:32]} 90. Kd6 {[%emt 0:00:10]} Rd5+ {[%emt 0:01:04]} 91. Ke7 {[%emt 0:00:30]} Kg6 {[%emt 0:00:40]} 92. Qf4 {[%emt 0:01:56]} Rf5 {[%emt 0:00:13]} 93. Qh4 {[%emt 0:00:32]} Re5+ {[%emt 0:00:25]} 94. Kd7 {[%emt 0:00:19]} Rxg5 {[%emt 0:00:09]} 95. Qe4+ {[%emt 0:00:29]} Rf5 {[%emt 0:00:29]} 96. Ke7 {[%emt 0:00:21]} Bd5 {[%emt 0:00:29]} 97. Qg4+ {[%emt 0:00:21]} Rg5 {[%emt 0:00:19]} 98. Qh4 {[%emt 0:00:08]} Rf5 {[%emt 0:00:45]} 99. Kd6 {[%emt 0:00:18]} Bf7 {[%emt 0:00:12]} 100. Qg3+ {[%emt 0:00:24]} Rg5 {[%emt 0:00:13]} 101. Qd3+ {[%emt 0:00:17]} Kh6 {[%emt 0:00:37]} 102. Ke7 {[%emt 0:00:26]} Bg6 {[%emt 0:00:46]} 103. Qe3 {[%emt 0:00:40]} 1-0